fUSD/lending_fUSD_20240915
["ID","MTS","AMOUNT","RATE_DAILY","PERIOD"]
[338226013,1726394261566,228.31,0.00010959,2]
[338226014,1726394276916,154.31,0.00012159,2]
[338226015,1726394281342,772.08,0.00012137,2]
[338226016,1726394282725,250.0,0.00012137,2]
[338226021,1726394542104,6016.98,0.0001215,2]
[338226022,1726394626747,1952.95,0.00012279,2]
[338226023,1726394662398,1000.0,0.00012319,2]
[338226024,1726394686367,389.09,0.00010443,2]
[338226025,1726394770731,386.04,0.00012235,2]
[338226026,1726394798597,168.43,0.00012265,2]
[338226028,1726394944074,2000.0,0.00012224,2]
[338226032,1726394982230,250.0,0.0001222,2]
[338226042,1726395032003,-1405.8639,0.000127,2]
[338226043,1726395032012,-5660.581,0.000127,2]
[338226044,1726395032021,-389.09,0.00012707,2]
[338226045,1726395032030,-5084.95406451,0.0001279,2]
[338226046,1726395032039,-5405.8431022,0.00012799,2]
[338226047,1726395032050,-3116.33444117,0.00012799,2]
[338226048,1726395032064,-818.82444517,0.00012799,2]
[338226049,1726395032075,-757.13168339,0.00012799,2]
[338226050,1726395032085,-711.6,0.00012799,2]
[338226051,1726395032096,-4111.53231288,0.00012799,2]
[338226052,1726395032105,-150.0,0.00012799,2]
[338226053,1726395032115,-705.11583397,0.000128,2]
[338226054,1726395032149,-977.13686603,0.000128,2]
[338226055,1726395032158,-3413.07895283,0.000128,2]
[338226056,1726395032169,-580.8,0.000128,2]
[338226057,1726395032180,-661.94597847,0.000128,2]
[338226058,1726395032252,-615.76243314,0.000128,2]
[338226059,1726395032263,-1769.44573556,0.000128,2]
[338226060,1726395032273,-2113.7809,0.000128,2]
[338226062,1726395032282,-10023.6101,0.000128,2]
[338226064,1726395032292,-943.3389,0.000128,2]
[338226066,1726395032301,-160.96512444,0.000128,2]
[338226068,1726395032312,-1313.68437556,0.000128,2]
[338226070,1726395032321,-4010.1616,0.000128,2]
[338226072,1726395032331,-160.68711299,0.000128,2]
[338226074,1726395032340,-221.98948,0.0001287,2]
[338226076,1726395032349,-221.98947,0.0001287,2]
[338226078,1726395032358,-221.98947,0.0001287,2]
[338226079,1726395032367,-221.98948,0.0001287,2]
[338226081,1726395032376,-221.98948,0.0001287,2]
[338226083,1726395032386,-221.98948,0.0001287,2]
[338226084,1726395032396,-163.858,0.00012872,2]
[338226085,1726395032405,-500.0,0.00012873,2]
[338226086,1726395032414,-511.8498062,0.00012873,2]
[338226087,1726395032423,-429.7046086,0.00012873,2]
[338226088,1726395032432,-438.0,0.00012873,2]
[338226089,1726395032441,-7704.76033331,0.00012873,2]
[338226090,1726395032453,-679.71,0.00012873,2]
[338226115,1726395038150,-1994.19640253,0.00012873,2]
[338226116,1726395038161,-7975.09654811,0.00012873,2]
[338226117,1726395038173,-1925.65000005,0.00012873,2]
[338226118,1726395038245,-2106.75256713,0.00012873,2]
[338226119,1726395038256,-4363.59582778,0.00012873,2]
[338226120,1726395038268,-3002.72832109,0.00012873,2]
[338226121,1726395038279,-500.0,0.00012873,2]
[338226122,1726395038289,-200.0,0.00012873,2]
[338226123,1726395038298,-802.41786804,0.00012877,2]
[338226124,1726395038309,-308.66866659,0.00012877,2]
[338226125,1726395038321,-1030.77018935,0.00012877,2]
[338226126,1726395038333,-2996.31697602,0.00012877,2]
[338226127,1726395038342,-162.24,0.0001289,2]
[338226128,1726395038352,-386.67560681,0.00012899,2]
[338226129,1726395038414,-26.07169175,0.00012899,2]
[338226130,1726395038423,-500.0,0.00012899,2]
[338226131,1726395038433,-500.0,0.00012899,2]
[338226132,1726395038442,-500.0,0.00012899,2]
[338226133,1726395038452,-500.0,0.00012899,2]
[338226134,1726395038461,-393.35995606,0.00012899,2]
[338226135,1726395038471,-3411.25,0.00012899,2]
[338226137,1726395038480,-150.99,0.00012899,2]
[338226139,1726395038489,-499.99,0.00012899,2]
[338226140,1726395038498,-689.2802,0.000129,2]
[338226142,1726395038507,-1000.0,0.000129,2]
[338226144,1726395038517,-3343.0973,0.000129,2]
[338226146,1726395038526,-14141.3599,0.000129,2]
[338226148,1726395038535,-2248.4717,0.000129,2]
[338226150,1726395038544,-245000.0,0.000129,2]
[338226152,1726395038554,-433.2501,0.000129,2]
[338226154,1726395038563,-38988.7185,0.000129,2]
[338226156,1726395038572,-500.0,0.000129,2]
[338226158,1726395038582,-25109.1521,0.000129,2]
[338226160,1726395038591,-100000.0,0.000129,2]
[338226162,1726395038600,-948.5528,0.000129,2]
[338226164,1726395038610,-7594.8912,0.000129,2]
[338226166,1726395038619,-291.6708,0.000129,2]
[338226167,1726395038628,-171.17415423,0.000129,2]
[338226169,1726395038640,-7500.0,0.000129,2]
[338226171,1726395038649,-205.23123664,0.000129,2]
[338226173,1726395038658,-710.02876566,0.000129,2]
[338226175,1726395038668,-1316.09419445,0.000129,2]
[338226177,1726395038677,-167.0,0.00012952,2]
[338226179,1726395038687,-299.99,0.00012952,2]
[338226181,1726395038696,-150.99,0.00012973,2]
[338226183,1726395038713,-500.0,0.00012973,2]
[338226185,1726395038723,-274.81984295,0.00012997,2]
[338226187,1726395038732,-230.40359226,0.00012999,2]
[338226189,1726395038741,-97236.4084018,0.00013,2]
[338226190,1726395038750,-280249.47,0.00013,2]
[338226192,1726395038759,-4165670.39572307,0.00013,2]
[338226195,1726395038770,-3500.51760241,0.00013,2]
[338226197,1726395038782,-865.69,0.00013,2]
[338226200,1726395038801,-404.64145571,0.00013,2]
[338226202,1726395038812,-398.08801065,0.00013,2]
[338226332,1726395040060,-14025.42300529,0.00013,2]
[338226334,1726395040073,-3925.90890146,0.00013,2]
[338226336,1726395040084,-574.03358918,0.00013,2]
[338226338,1726395040095,-14379.00495764,0.00013,2]
[338226341,1726395040111,-20033.00775379,0.00013,2]
[338226350,1726395040192,-7263.84919311,0.00013,2]
[338226352,1726395040204,-285.12435591,0.00013,2]
[338226355,1726395040216,-4463.28178376,0.00013,2]
[338226357,1726395040228,-1950.0,0.00013,2]
[338226359,1726395040243,-2422.93774298,0.00013,2]
[338226361,1726395040255,-325.57201946,0.00013,2]
[338226364,1726395040266,-255.61100723,0.00013,2]
[338226372,1726395040336,-318.9,0.00013,2]
[338226374,1726395040348,-570.974,0.00013,2]
[338226376,1726395040359,-1922.42255462,0.00013,2]
[338226379,1726395040375,-858.14295306,0.00013,2]
[338226381,1726395040386,-1153.34238724,0.00013,2]
[338226571,1726395043157,-319.88,0.00013,2]
[338226572,1726395043169,-5714.85787125,0.00013,2]
[338226573,1726395043180,-22488.59274326,0.00013,2]
[338226574,1726395043191,-1300.0,0.00013,2]
[338226575,1726395043203,-742.96054236,0.00013,2]
[338226611,1726395043847,-507.53028692,0.00013,2]
[338226613,1726395043859,-357.69482547,0.00013,2]
[338226615,1726395043871,-3484.0,0.00013,2]
[338226618,1726395043883,-515.811067,0.00013,2]
[338226620,1726395043895,-475.33246739,0.00013,2]
[338226622,1726395043908,-565.99524606,0.00013,2]
[338226625,1726395043921,-590.0,0.00013,2]
[338226627,1726395043935,-1160.60801783,0.00013,2]
[338226632,1726395043970,-866.26322047,0.00013,2]
[338226634,1726395043983,-3145.92623713,0.00013,2]
[338226636,1726395043994,-1257.99548884,0.00013,2]
[338226639,1726395044006,-1044.08377648,0.00013,2]
[338226641,1726395044018,-13057.23584385,0.00013,2]
[338226643,1726395044029,-9756.0,0.00013,2]
[338226646,1726395044046,-250983.26524667,0.00013,2]
[338226648,1726395044057,-2302589.36156925,0.00013,2]
[338226649,1726395044069,-500.0,0.00013,2]
[338226650,1726395044081,-9351.87391616,0.00013,2]
[338226651,1726395044093,-15896.8466157,0.00013,2]
[338226652,1726395044105,-8673.86875784,0.00013,2]
[338226654,1726395044116,-423.95581672,0.00013,2]
[338226656,1726395044128,-357177.95956195,0.00013,2]
[338226788,1726395046107,-713.59538824,0.00013,2]
[338226789,1726395046375,-14674.0,0.00013,2]
[338226790,1726395147484,167.0,0.00012445,2]
[338226792,1726395200190,350.18,9.899e-05,2]
[338226793,1726395200412,350.18,0.00012163,2]
[338226794,1726395229769,200.0,0.0001182,2]
[338226795,1726395258140,1189.85869026,0.00012631,2]
[338226796,1726395263087,1189.85869025,0.00012633,2]
[338226797,1726395268195,1189.85869025,0.00012634,2]
[338226798,1726395281196,529.81,0.00011816,2]
[338226802,1726395301363,157.41,0.00010959,2]
[338226803,1726395388794,5203.14,0.00011816,2]
[338226804,1726395425572,486.79,0.00011815,2]
[338226805,1726395438846,2000.0,0.00011815,2]
[338226806,1726395470899,250.0,0.00011815,2]
[338226807,1726395506566,73584.18194468,0.00012357,2]
[338226808,1726395527898,2000.0,0.00012357,2]
[338226809,1726395619529,4617.42597476,0.000125,2]
[338226810,1726395619555,332.57402524,0.000125,2]
[338226811,1726395641121,2533.94,0.00011812,2]
[338226812,1726395682571,167.27,0.00012445,2]
[338226813,1726395745680,442.77,9.893e-05,2]
[338226814,1726395745881,442.77,0.00012157,2]
[338226815,1726395753500,189.98,0.00012402,2]
[338226816,1726395776437,1050.0,0.00011,2]
[338226817,1726395822392,840.0,0.00011812,2]
[338226862,1726395933944,156.7,0.00011806,2]
[338226866,1726395962944,189.66,0.00010959,2]
[338227564,1726396079890,264.9,0.00011806,2]
[338227569,1726396121963,250.0,0.00011806,2]
[338227571,1726396185976,167.01,0.00012445,2]
[338227578,1726396232253,-2500.0,0.000127,2]
[338227579,1726396232265,-150.0,0.00012706,2]
[338227580,1726396232274,-150.0,0.00012707,2]
[338227581,1726396232284,-150.0,0.00012721,2]
[338227582,1726396232293,-8.33404992,0.00012724,2]
[338227583,1726396232309,-141.66595008,0.00012724,2]
[338227584,1726396232319,-150.0,0.00012729,2]
[338227585,1726396232329,-150.0,0.00012733,2]
[338227586,1726396232338,-150.0,0.00012733,2]
[338227587,1726396232348,-143.35404992,0.00012736,2]
[338227588,1726396232359,-6.64595008,0.00012736,2]
[338227589,1726396232370,-150.0,0.00012742,2]
[338227590,1726396232379,-300.0,0.00012742,2]
[338227591,1726396232389,-150.0,0.00012743,2]
[338227592,1726396232399,-499.99,0.00012743,2]
[338227593,1726396232408,-259.36447605,0.00012743,2]
[338227594,1726396232430,-313.14461158,0.00012743,2]
[338227595,1726396232442,-991.0,0.00012743,2]
[338227596,1726396232453,-1388.05091237,0.00012743,2]
[338227597,1726396232462,-150.99,0.00012743,2]
[338227598,1726396232472,-150.0,0.00012748,2]
[338227599,1726396232481,-150.0,0.00012748,2]
[338227600,1726396232491,-150.0,0.0001275,2]
[338227601,1726396232500,-29.98861605,0.00012752,2]
[338227603,1726396232511,-120.01138395,0.00012752,2]
[338227605,1726396232521,-150.0,0.0001276,2]
[338227606,1726396232533,-150.0,0.00012761,2]
[338227607,1726396232543,-79.98861605,0.00012765,2]
[338227618,1726396238303,-150.0,0.00012737,2]
[338227619,1726396238313,-150.0,0.00012739,2]
[338227620,1726396238324,-70.01138395,0.00012765,2]
[338227621,1726396238334,-129.98861605,0.00012766,2]
[338227622,1726396238390,-222.17368395,0.00012766,2]
[338227623,1726396238400,-7057.23974154,0.00012766,2]
[338227624,1726396238412,-5539.29355846,0.00012766,2]
[338227625,1726396238429,-150.0,0.00012768,2]
[338227626,1726396238438,-150.0,0.00012768,2]
[338227627,1726396238448,-150.0,0.00012769,2]
[338227628,1726396238458,-153.22099425,0.0001277,2]
[338227629,1726396238467,-1141.9473,0.0001277,2]
[338227630,1726396238478,-150.0,0.00012772,2]
[338227631,1726396238487,-160.52220733,0.00012773,2]
[338227632,1726396238497,-150.0,0.00012773,2]
[338227633,1726396238507,-150.0,0.00012773,2]
[338227634,1726396238517,-150.0,0.00012777,2]
[338227635,1726396238527,-150.0,0.00012782,2]
[338227636,1726396238536,-150.0,0.00012783,2]
[338227637,1726396238549,-150.0,0.00012784,2]
[338227638,1726396238559,-150.0,0.00012788,2]
[338227639,1726396238568,-150.0,0.0001279,2]
[338227640,1726396238578,-150.0,0.00012796,2]
[338227641,1726396238588,-150.0,0.00012798,2]
[338227642,1726396238598,-691.63407166,0.000128,2]
[338227643,1726396238610,-519.07829482,0.000128,2]
[338227644,1726396238623,-5779.81155884,0.000128,2]
[338227645,1726396238635,-31998.19457468,0.000128,2]
[338227646,1726396238645,-1084.7778,0.000128,2]
[338227647,1726396238655,-97624.6821,0.000128,2]
[338227648,1726396238665,-500.0,0.000128,2]
[338227649,1726396238675,-150.0,0.00012802,2]
[338227650,1726396238685,-150.0,0.00012806,2]
[338227651,1726396238695,-150.0,0.00012807,2]
[338227652,1726396238704,-150.0,0.00012808,2]
[338227653,1726396238714,-150.0,0.00012811,2]
[338227654,1726396238723,-150.0,0.00012813,2]
[338227655,1726396238733,-150.0,0.00012816,2]
[338227656,1726396238743,-150.0,0.00012817,2]
[338227657,1726396238753,-150.0,0.00012822,2]
[338227658,1726396238762,-150.0,0.00012823,2]
[338227659,1726396238772,-150.0,0.00012823,2]
[338227660,1726396238781,-150.0,0.00012824,2]
[338227661,1726396238790,-150.0,0.00012827,2]
[338227662,1726396238871,-150.0,0.00012834,2]
[338227663,1726396238881,-150.0,0.00012835,2]
[338227664,1726396238890,-153.22099425,0.00012835,2]
[338227666,1726396238899,-150.0,0.00012839,2]
[338227667,1726396238908,-150.0,0.00012843,2]
[338227668,1726396238918,-150.0,0.00012846,2]
[338227669,1726396238927,-150.0,0.00012853,2]
[338227670,1726396238936,-150.0,0.00012854,2]
[338227671,1726396238946,-150.0,0.00012854,2]
[338227672,1726396238956,-150.0,0.00012855,2]
[338227673,1726396238965,-150.0,0.00012857,2]
[338227674,1726396238974,-150.0,0.00012857,2]
[338227675,1726396238983,-150.0,0.00012858,2]
[338227676,1726396238993,-150.0,0.00012859,2]
[338227677,1726396239003,-150.0,0.00012859,2]
[338227678,1726396239011,-150.0,0.00012862,2]
[338227679,1726396239021,-150.0,0.00012863,2]
[338227680,1726396239030,-150.0,0.00012867,2]
[338227681,1726396239039,-87860.0904568,0.0001287,2]
[338227682,1726396239056,-150.0,0.0001275,2]
[338227683,1726396239066,-174.96367982,0.0001287,2]
[338227684,1726396239076,-2123.8997036,0.0001287,2]
[338227685,1726396239123,-560.31418169,0.0001287,2]
[338227686,1726396239134,-794.86802,0.0001287,2]
[338227690,1726396240317,-150.0,0.00012729,2]
[338227691,1726396240326,-150.0,0.00012757,2]
[338227692,1726396240336,-150.0,0.00012757,2]
[338227693,1726396240345,-150.0,0.00012766,2]
[338227694,1726396240354,-150.0,0.00012781,2]
[338227695,1726396240363,-150.0,0.00012787,2]
[338227696,1726396240373,-150.0,0.00012801,2]
[338227697,1726396240382,-150.0,0.00012803,2]
[338227698,1726396240391,-150.0,0.00012812,2]
[338227699,1726396240400,-150.0,0.00012839,2]
[338227700,1726396240409,-150.0,0.00012847,2]
[338227701,1726396240419,-93609.58972758,0.0001287,2]
[338227702,1726396240428,-940.18442,0.0001287,2]
[338227703,1726396240438,-470.09221,0.0001287,2]
[338227704,1726396240447,-150.0,0.0001287,2]
[338227705,1726396240457,-150.0,0.00012872,2]
[338227706,1726396240466,-150.0,0.00012872,2]
[338227707,1726396240475,-500.0,0.00012873,2]
[338227708,1726396240484,-247.27425986,0.00012873,2]
[338227709,1726396240494,-641.28735022,0.00012873,2]
[338227710,1726396240503,-500.0,0.00012873,2]
[338227711,1726396240512,-500.0,0.00012873,2]
[338227712,1726396240522,-500.0,0.00012873,2]
[338227713,1726396240532,-150.0,0.00012874,2]
[338227714,1726396240542,-150.0,0.00012875,2]
[338227715,1726396240554,-150.0,0.00012876,2]
[338227716,1726396240563,-150.0,0.00012877,2]
[338227717,1726396240573,-150.0,0.00012879,2]
[338227718,1726396240582,-150.0,0.0001288,2]
[338227719,1726396240592,-150.0,0.00012881,2]
[338227720,1726396240602,-150.0,0.00012881,2]
[338227721,1726396240611,-150.0,0.00012881,2]
[338227722,1726396240620,-150.0,0.00012881,2]
[338227723,1726396240631,-150.0,0.00012883,2]
[338227724,1726396240641,-150.0,0.00012885,2]
[338227725,1726396240650,-150.0,0.00012885,2]
[338227726,1726396240659,-150.0,0.00012886,2]
[338227727,1726396240668,-150.0,0.00012887,2]
[338227728,1726396240678,-150.0,0.00012887,2]
[338227729,1726396240687,-150.0,0.00012888,2]
[338227730,1726396240696,-150.0,0.00012888,2]
[338227731,1726396240706,-150.0,0.0001289,2]
[338227732,1726396240715,-150.0,0.00012891,2]
[338227733,1726396240725,-150.0,0.00012892,2]
[338227734,1726396240734,-150.0,0.00012893,2]
[338227735,1726396240744,-150.0,0.00012893,2]
[338227736,1726396240753,-150.0,0.00012895,2]
[338227737,1726396240763,-150.0,0.00012895,2]
[338227738,1726396240772,-500.0,0.00012899,2]
[338227739,1726396240781,-500.0,0.00012899,2]
[338227740,1726396240790,-159.17157928,0.00012899,2]
[338227741,1726396240802,-340.82842072,0.00012899,2]
[338227742,1726396240811,-424.85296827,0.00012899,2]
[338227743,1726396240895,-75.14703173,0.00012899,2]
[338227744,1726396240904,-500.0,0.00012899,2]
[338227745,1726396240914,-500.0,0.00012899,2]
[338227746,1726396240925,-248.93490165,0.00012899,2]
[338227747,1726396240934,-22.82935234,0.00012899,2]
[338227748,1726396240946,-477.17064766,0.00012899,2]
[338227749,1726396240955,-500.0,0.00012899,2]
[338227750,1726396240964,-500.0,0.00012899,2]
[338227751,1726396240974,-447.15072799,0.00012899,2]
[338227752,1726396240983,-500.0,0.00012899,2]
[338227753,1726396240992,-150.0,0.00012899,2]
[338227754,1726396241001,-847.75888575,0.000129,2]
[338227834,1726396243286,-671.32315737,0.000129,2]
[338227837,1726396243298,-1023.82317081,0.000129,2]
[338227839,1726396243310,-767.14366818,0.000129,2]
[338227841,1726396243321,-589.37436581,0.000129,2]
[338227843,1726396243333,-11005.28025208,0.000129,2]
[338227845,1726396243342,-1837.15671993,0.000129,2]
[338227847,1726396243353,-341.04,0.000129,2]
[338227849,1726396243364,-895.78987325,0.000129,2]
[338227851,1726396243375,-1289.86282943,0.000129,2]
[338227853,1726396243386,-432.89653833,0.000129,2]
[338227855,1726396243397,-1117.28317245,0.000129,2]
[338227857,1726396243408,-1103.1653179,0.000129,2]
[338227933,1726396244175,-2020.12,0.000129,2]
[338227935,1726396244187,-827.30933768,0.000129,2]
[338227938,1726396244198,-4445.23740939,0.000129,2]
[338227940,1726396244208,-2541.3138532,0.000129,2]
[338227942,1726396244219,-2754.31674355,0.000129,2]
[338227944,1726396244231,-4200.0,0.000129,2]
[338227946,1726396244241,-935.12,0.000129,2]
[338227948,1726396244252,-630.11740015,0.000129,2]
[338227951,1726396244263,-412.1753019,0.000129,2]
[338227953,1726396244274,-532.14359984,0.000129,2]
[338227955,1726396244285,-363.33683964,0.000129,2]
[338227957,1726396244296,-1098.75051472,0.000129,2]
[338227959,1726396244307,-4202.89669979,0.000129,2]
[338227962,1726396244322,-3455.53409534,0.000129,2]
[338227964,1726396244333,-471.44131326,0.000129,2]
[338227966,1726396244343,-709.17,0.000129,2]
[338227968,1726396244354,-309.9682599,0.000129,2]
[338227970,1726396244365,-340.56009831,0.000129,2]
[338227974,1726396244388,-207733.29408204,0.000129,2]
[338227976,1726396244397,-1000.0,0.000129,2]
[338227978,1726396244406,-156.33966159,0.000129,2]
[338227980,1726396244415,-7500.0,0.000129,2]
[338227982,1726396244425,-153.22099425,0.000129,2]
[338227984,1726396244435,-2632.1883889,0.000129,2]
[338227986,1726396244444,-2357.80715962,0.000129,2]
[338227987,1726396244453,-150.0,0.00012901,2]
[338227988,1726396244462,-150.0,0.00012903,2]
[338227989,1726396244472,-150.0,0.00012909,2]
[338227990,1726396244481,-150.0,0.00012909,2]
[338227991,1726396244490,-150.0,0.00012911,2]
[338227993,1726396244500,-150.0,0.00012911,2]
[338227995,1726396244510,-150.0,0.00012913,2]
[338227997,1726396244519,-150.0,0.00012917,2]
[338227999,1726396244528,-150.0,0.0001292,2]
[338228001,1726396244537,-150.0,0.00012921,2]
[338228003,1726396244550,-150.0,0.00012921,2]
[338228005,1726396244559,-150.0,0.00012923,2]
[338228006,1726396244569,-150.0,0.00012928,2]
[338228007,1726396244578,-150.0,0.00012929,2]
[338228008,1726396244589,-150.0,0.00012929,2]
[338228009,1726396244598,-150.0,0.00012933,2]
[338228010,1726396244607,-150.0,0.00012935,2]
[338228011,1726396244616,-150.0,0.00012936,2]
[338228012,1726396244626,-150.0,0.00012938,2]
[338228013,1726396244636,-150.0,0.00012944,2]
[338228014,1726396244645,-150.0,0.00012944,2]
[338228015,1726396244655,-150.0,0.00012945,2]
[338228016,1726396244664,-150.0,0.00012946,2]
[338228017,1726396244674,-150.0,0.00012946,2]
[338228019,1726396244683,-150.0,0.0001295,2]
[338228020,1726396244692,-150.0,0.00012952,2]
[338228022,1726396244701,-150.0,0.00012956,2]
[338228024,1726396244711,-150.0,0.00012958,2]
[338228026,1726396244721,-150.0,0.00012971,2]
[338228028,1726396244730,-500.61942495,0.00012973,2]
[338228030,1726396244740,-150.0,0.00012983,2]
[338228032,1726396244749,-150.0,0.00012991,2]
[338228034,1726396244757,-150.0,0.00012993,2]
[338228035,1726396244767,-69907.06637588,0.00013,2]
[338228037,1726396244776,-577472.6360954,0.00013,2]
[338228039,1726396244785,-383853.94485162,0.00013,2]
[338228042,1726396244796,-605.70812265,0.00013,2]
[338228044,1726396244807,-301.616,0.00013,2]
[338228046,1726396244818,-2005.80185951,0.00013,2]
[338228047,1726396244831,-14460.26547633,0.00013,2]
[338228056,1726396246311,-891.94150928,0.00012781,2]
[338228057,1726396246325,-1033.47314724,0.00012781,2]
[338228058,1726396246334,-339.68908971,0.00013,2]
[338228059,1726396246346,-285.60453231,0.00013,2]
[338228060,1726396246359,-1000.0,0.00013,2]
[338228061,1726396246371,-10018.96925061,0.00013,2]
[338228062,1726396246383,-470.08,0.00013,2]
[338228063,1726396246394,-367.4923158,0.00013,2]
[338228064,1726396246406,-16344.51668327,0.00013,2]
[338228065,1726396246418,-2064.39225517,0.00013,2]
[338228066,1726396246454,-376.58731798,0.00013,2]
[338228067,1726396246466,-109684.32219062,0.00013,2]
[338228068,1726396246479,-160032.32189795,0.00013,2]
[338228069,1726396246492,-13413.68580089,0.00013,2]
[338228070,1726396246505,-1657.21148328,0.00013,2]
[338228071,1726396246545,-3578.38314441,0.00013,2]
[338228072,1726396246563,-86110.23799385,0.00013,2]
[338228073,1726396246580,-1462.76416002,0.00013,2]
[338228074,1726396246592,-3678.56594504,0.00013,2]
[338228075,1726396246604,-442.82396974,0.00013,2]
[338228076,1726396246618,-462.25138963,0.00013,2]
[338228078,1726396246631,-4643.55379647,0.00013,2]
[338228627,1726396300912,398.49,0.000112,2]
[338228628,1726396385465,5935.7146,0.000126,2]
[338228629,1726396427554,168.43,0.00012213,2]
[338228630,1726396456799,156.46,0.00010959,2]
[338228631,1726396457842,1000.0,0.00012235,2]
[338228632,1726396512789,172.0,0.0001319,120]
[338228633,1726396513255,172.0,0.0001318,120]
[338228634,1726396514302,172.0,0.0001317,120]
[338228635,1726396514785,172.0,0.0001379,120]
[338228636,1726396515242,172.0,0.0001378,120]
[338228637,1726396515694,172.0,0.0001377,120]
[338228638,1726396516217,172.0,0.00014586,120]
[338228639,1726396516746,172.0,0.00014576,120]
[338228640,1726396517226,172.0,0.00014784,120]
[338228641,1726396517699,175.18,0.00014774,120]
[338228642,1726396621428,250.0,0.00012509,2]
[338228643,1726396684340,264.9,0.00012398,2]
[338228644,1726396782686,2000.0,0.00012509,2]
[338228645,1726396808545,500.0,0.000126,2]
[338228646,1726396812777,415.72,0.00011151,2]
[338228647,1726396945690,200.0,0.00012312,2]
[338228648,1726397024829,224.65,0.00010959,2]
[338228649,1726397067486,544.5,0.00012281,2]
[338228650,1726397141427,250.0,0.00012369,2]
[338228652,1726397381468,22147.14,0.0001238,2]
[338228653,1726397413422,2127.37,0.00012512,2]
[338228654,1726397431395,-734.6075021,0.00012777,2]
[338228655,1726397431407,-948.42269918,0.00012777,2]
[338228656,1726397431416,-940.18443,0.0001287,2]
[338228657,1726397431425,-167.0,0.00012877,2]
[338228658,1726397431434,-244.39287082,0.00012899,2]
[338228659,1726397431451,-55.60712918,0.00012899,2]
[338228660,1726397431460,-444.39287082,0.000129,2]
[338228661,1726397431471,-7055.60712918,0.000129,2]
[338228662,1726397431480,-940.18443,0.000129,2]
[338228663,1726397431489,-470.09221,0.000129,2]
[338228664,1726397431499,-2112.74073824,0.000129,2]
[338228665,1726397431508,-183.42180179,0.000129,2]
[338228666,1726397431517,-363.55146632,0.000129,2]
[338228667,1726397431527,-2500.0,0.000129,2]
[338228668,1726397431536,-940.18443,0.0001293,2]
[338228669,1726397431546,-500.0,0.00012973,2]
[338228670,1726397431555,-480.33189407,0.00012973,2]
[338228671,1726397431607,-20.84011104,0.00012973,2]
[338228672,1726397431617,-279.91365885,0.00012973,2]
[338228673,1726397431628,-220.08634115,0.00012973,2]
[338228674,1726397431637,-166.529,0.00012973,2]
[338228675,1726397431647,-450.27763919,0.00012999,2]
[338228676,1726397431701,-49.72236081,0.00012999,2]
[338228677,1726397431711,-500.0,0.00012999,2]
[338228678,1726397431720,-354.19777798,0.00012999,2]
[338228679,1726397431731,-240.76023029,0.00012999,2]
[338228680,1726397431740,-561.0,0.00013,2]
[338228681,1726397431750,-299.99,0.00013,2]
[338228682,1726397431759,-499.99,0.00013,2]
[338228683,1726397431768,-5496.48711554,0.00013,2]
[338228684,1726397431779,-29219.29385109,0.00013,2]
[338228685,1726397431803,-1170.165,0.00013,2]
[338228692,1726397437645,-316.31697603,0.000129,2]
[338228693,1726397437655,-3256.439553,0.00013,2]